[Event "*** Titled Tuesday Blitz"]
[Site "Chess.com"]
[Date "2019.06.04"]
[Round "1"]
[White "JoachimMouhamad"]
[Black "maciek_92"]
[Result "0-1"]
[WhiteElo "2338"]
[BlackElo "2679"]
[TimeControl "180+2"]
[EndTime "13:08:17 PDT"]
[Termination "maciek_92 won by resignation"]

1. e4 {[%clk 0:03:01.5]} 1... c5 {[%clk 0:02:57.5]} 2. Nf3 {[%clk 0:03:02.7]}
2... Nc6 {[%clk 0:02:58.9]} 3. d4 {[%clk 0:03:04.3]} 3... cxd4 {[%clk
0:03:00.4]} 4. Nxd4 {[%clk 0:03:06.2]} 4... Nf6 {[%clk 0:03:01.9]} 5. Nc3 {[%clk
0:03:07.9]} 5... e5 {[%clk 0:03:03.4]} 6. Ndb5 {[%clk 0:03:05.5]} 6... d6 {[%clk
0:03:04.6]} 7. Bg5 {[%clk 0:03:06.2]} 7... a6 {[%clk 0:03:05.8]} 8. Na3 {[%clk
0:03:07.7]} 8... b5 {[%clk 0:03:06.9]} 9. Nd5 {[%clk 0:03:09.4]} 9... Be7 {[%clk
0:03:07.6]} 10. Bxf6 {[%clk 0:03:10.9]} 10... Bxf6 {[%clk 0:03:08.8]} 11. c3
{[%clk 0:03:12.8]} 11... Bg5 {[%clk 0:03:09.8]} 12. Nc2 {[%clk 0:03:13.4]} 12...
Ne7 {[%clk 0:03:10.5]} 13. Ncb4 {[%clk 0:03:12.9]} 13... O-O {[%clk 0:03:09.8]}
14. a4 {[%clk 0:03:12.4]} 14... bxa4 {[%clk 0:03:10.3]} 15. Rxa4 {[%clk
0:03:11.4]} 15... a5 {[%clk 0:03:10.9]} 16. Nxe7+ {[%clk 0:03:11.8]} 16... Qxe7
{[%clk 0:03:12.8]} 17. Nd5 {[%clk 0:03:12.9]} 17... Qb7 {[%clk 0:03:14.3]} 18.
b3 {[%clk 0:03:09.8]} 18... Bd7 {[%clk 0:03:10.1]} 19. Ra2 {[%clk 0:02:57.7]}
19... Kh8 {[%clk 0:03:01.5]} 20. Bc4 {[%clk 0:02:48.9]} 20... f5 {[%clk
0:02:33.6]} 21. exf5 {[%clk 0:02:36.1]} 21... Bxf5 {[%clk 0:02:35.5]} 22. O-O
{[%clk 0:02:34.5]} 22... Bd7 {[%clk 0:02:09.3]} 23. Qe2 {[%clk 0:02:33.1]} 23...
Bc6 {[%clk 0:02:04]} 24. Rd1 {[%clk 0:02:27.2]} 24... Bd8 {[%clk 0:01:50.6]} 25.
f3 {[%clk 0:02:23.1]} 25... Rb8 {[%clk 0:01:45.8]} 26. Kh1 {[%clk 0:02:20]}
26... Qc8 {[%clk 0:01:34.7]} 27. Qe4 {[%clk 0:02:16.2]} 27... Rf4 {[%clk
0:01:25.5]} 28. Qe2 {[%clk 0:02:15.1]} 28... Rh4 {[%clk 0:01:26.5]} 29. g3
{[%clk 0:02:10]} 29... Rh6 {[%clk 0:01:26.6]} 30. Rad2 {[%clk 0:01:55]} 30...
Qh3 {[%clk 0:01:23.5]} 31. Qg2 {[%clk 0:01:54.5]} 31... Qf5 {[%clk 0:01:19.9]}
32. g4 {[%clk 0:01:47.5]} 32... Qf8 {[%clk 0:01:17.3]} 33. Ra2 {[%clk
0:01:30.4]} 33... Rb7 {[%clk 0:01:01.4]} 34. Rf2 {[%clk 0:01:09.9]} 34... Rf7
{[%clk 0:00:57.5]} 35. Qf1 {[%clk 0:00:59.8]} 35... Bh4 {[%clk 0:00:56.7]} 36.
Kg2 {[%clk 0:00:58.9]} 36... Bxf2 {[%clk 0:00:56.5]} 37. Qxf2 {[%clk 0:01:00.8]}
37... Rxf3 {[%clk 0:00:45.1]} 38. Qxf3 {[%clk 0:01:02.3]} 38... Rxh2+ {[%clk
0:00:45.8]} 39. Kxh2 {[%clk 0:01:04.2]} 39... Qxf3 {[%clk 0:00:46.5]} 40. Rf1
{[%clk 0:01:05.9]} 40... Qxf1 {[%clk 0:00:47.1]} 41. Bxf1 {[%clk 0:01:06.5]}
41... Bxd5 {[%clk 0:00:48.7]} 42. b4 {[%clk 0:01:04.3]} 42... a4 {[%clk
0:00:49.2]} 43. b5 {[%clk 0:00:38.4]} 43... a3 {[%clk 0:00:49.9]} 44. b6 {[%clk
0:00:39.8]} 44... a2 {[%clk 0:00:49]} 45. Bc4 {[%clk 0:00:37.1]} 45... a1=Q
{[%clk 0:00:49.6]} 46. Bxd5 {[%clk 0:00:37.2]} 46... Qb2+ {[%clk 0:00:51]} 0-1

[Event "*** Titled Tuesday Blitz"]
[Site "Chess.com"]
[Date "2019.06.04"]
[Round "1"]
[White "chessmattersX"]
[Black "Genghis_K"]
[Result "1/2-1/2"]
[WhiteElo "2458"]
[BlackElo "2853"]
[TimeControl "180+2"]
[EndTime "13:08:18 PDT"]
[Termination "Game drawn by repetition"]

1. d4 {[%clk 0:03:01.9]} 1... Nf6 {[%clk 0:03:00.7]} 2. c4 {[%clk 0:03:01.9]}
2... g6 {[%clk 0:03:02.1]} 3. g3 {[%clk 0:03:02]} 3... Bg7 {[%clk 0:03:03.4]} 4.
Bg2 {[%clk 0:03:03.1]} 4... O-O {[%clk 0:03:05]} 5. Nc3 {[%clk 0:03:03.2]} 5...
d6 {[%clk 0:03:05.2]} 6. Nf3 {[%clk 0:03:03]} 6... Nc6 {[%clk 0:03:03.9]} 7. O-O
{[%clk 0:03:02.4]} 7... a6 {[%clk 0:03:05]} 8. b3 {[%clk 0:02:56.1]} 8... Rb8
{[%clk 0:03:05.7]} 9. Bb2 {[%clk 0:02:57.2]} 9... b5 {[%clk 0:03:05.5]} 10. cxb5
{[%clk 0:02:58.6]} 10... axb5 {[%clk 0:03:06.8]} 11. Rc1 {[%clk 0:03:00.1]}
11... b4 {[%clk 0:03:02.6]} 12. Na4 {[%clk 0:02:57.2]} 12... Bd7 {[%clk
0:03:03.6]} 13. d5 {[%clk 0:02:50.6]} 13... Na5 {[%clk 0:03:00.3]} 14. Nd4
{[%clk 0:02:50.4]} 14... e5 {[%clk 0:03:00.3]} 15. dxe6 {[%clk 0:02:33.5]} 15...
fxe6 {[%clk 0:02:59.1]} 16. Nc6 {[%clk 0:02:33.2]} 16... Nxc6 {[%clk 0:02:53.8]}
17. Bxc6 {[%clk 0:02:33.4]} 17... Rf7 {[%clk 0:02:45.5]} 18. Qd3 {[%clk
0:02:20.3]} 18... e5 {[%clk 0:02:18.9]} 19. Bxd7 {[%clk 0:01:54.7]} 19... Qxd7
{[%clk 0:02:09.4]} 20. Kg2 {[%clk 0:01:51.6]} 20... Rbf8 {[%clk 0:01:42.4]} 21.
f3 {[%clk 0:01:47.4]} 21... e4 {[%clk 0:01:30]} 22. Qd2 {[%clk 0:01:41]} 22...
Qe6 {[%clk 0:01:28.8]} 23. f4 {[%clk 0:01:31.8]} 23... c5 {[%clk 0:01:24.3]} 24.
e3 {[%clk 0:01:25.1]} 24... h5 {[%clk 0:01:16.4]} 25. Rfd1 {[%clk 0:01:17.9]}
25... h4 {[%clk 0:01:02.4]} 26. Bxf6 {[%clk 0:01:10.7]} 26... Rxf6 {[%clk
0:00:59.9]} 27. Qd5 {[%clk 0:01:09.5]} 27... h3+ {[%clk 0:00:59.1]} 28. Kf2
{[%clk 0:01:06.9]} 28... R8f7 {[%clk 0:00:55.8]} 29. Qxe6 {[%clk 0:01:07.9]}
29... Rxe6 {[%clk 0:00:57.7]} 30. Rd5 {[%clk 0:01:09.1]} 30... Rf5 {[%clk
0:00:57.7]} 31. Nb6 {[%clk 0:01:07.5]} 31... Rxd5 {[%clk 0:00:56.2]} 32. Nxd5
{[%clk 0:01:07.8]} 32... Kf7 {[%clk 0:00:57.5]} 33. g4 {[%clk 0:01:07.9]} 33...
Re8 {[%clk 0:00:58.9]} 34. Kg3 {[%clk 0:01:07.4]} 34... Ra8 {[%clk 0:00:59.2]}
35. Rc2 {[%clk 0:01:07.8]} 35... Ra7 {[%clk 0:00:59.6]} 36. f5 {[%clk
0:00:59.9]} 36... gxf5 {[%clk 0:01:00.4]} 37. gxf5 {[%clk 0:01:01.8]} 37... Be5+
{[%clk 0:00:59.3]} 38. Kxh3 {[%clk 0:01:02.8]} 38... Kf8 {[%clk 0:01:00.9]} 39.
f6 {[%clk 0:00:57]} 39... Kf7 {[%clk 0:00:59.8]} 40. Kg4 {[%clk 0:00:57.2]}
40... Ke6 {[%clk 0:00:59.7]} 41. Nf4+ {[%clk 0:00:58.2]} 41... Kxf6 {[%clk
0:00:59.5]} 42. Nd5+ {[%clk 0:00:44]} 42... Ke6 {[%clk 0:00:59.8]} 43. Nf4+
{[%clk 0:00:45.2]} 43... Kf6 {[%clk 0:00:37]} 44. Nd5+ {[%clk 0:00:45.7]} 44...
Kg6 {[%clk 0:00:37.4]} 45. Nf4+ {[%clk 0:00:43.8]} 45... Kf6 {[%clk 0:00:19.6]}
1/2-1/2

[Event "*** Titled Tuesday Blitz"]
[Site "Chess.com"]
[Date "2019.06.04"]
[Round "1"]
[White "flubs"]
[Black "Cryptochess"]
[Result "0-1"]
[WhiteElo "2310"]
[BlackElo "2652"]
[TimeControl "180+2"]
[EndTime "13:08:22 PDT"]
[Termination "Cryptochess won by checkmate"]

1. c4 {[%clk 0:02:59.6]} 1... e6 {[%clk 0:02:50.1]} 2. g3 {[%clk 0:03:00.1]}
2... d5 {[%clk 0:02:51]} 3. Bg2 {[%clk 0:03:01.2]} 3... Nf6 {[%clk 0:02:51.9]}
4. Nf3 {[%clk 0:03:02.2]} 4... dxc4 {[%clk 0:02:53.1]} 5. Qa4+ {[%clk
0:03:01.5]} 5... c6 {[%clk 0:02:54.1]} 6. Qxc4 {[%clk 0:03:01.7]} 6... b5 {[%clk
0:02:55.4]} 7. Qc2 {[%clk 0:03:01.9]} 7... Bb7 {[%clk 0:02:57]} 8. d4 {[%clk
0:02:58]} 8... Nbd7 {[%clk 0:02:58]} 9. Bd2 {[%clk 0:02:50]} 9... c5 {[%clk
0:02:57.8]} 10. O-O {[%clk 0:02:41.6]} 10... Qb6 {[%clk 0:02:56.2]} 11. dxc5
{[%clk 0:02:28.4]} 11... Bxc5 {[%clk 0:02:58.1]} 12. Nc3 {[%clk 0:02:13.7]}
12... O-O {[%clk 0:02:54.8]} 13. Rac1 {[%clk 0:02:08.2]} 13... Rac8 {[%clk
0:02:50.1]} 14. Qb3 {[%clk 0:02:06.8]} 14... a6 {[%clk 0:02:11.1]} 15. a4 {[%clk
0:01:54.4]} 15... b4 {[%clk 0:02:09.2]} 16. a5 {[%clk 0:01:55.1]} 16... Qxa5
{[%clk 0:02:01.1]} 17. Na4 {[%clk 0:01:54.7]} 17... Bd5 {[%clk 0:01:58.2]} 18.
Qd1 {[%clk 0:01:55.1]} 18... Ba7 {[%clk 0:01:54.4]} 19. Rxc8 {[%clk 0:01:54.1]}
19... Rxc8 {[%clk 0:01:53.2]} 20. b3 {[%clk 0:01:41.3]} 20... Ne4 {[%clk
0:01:50.7]} 21. h4 {[%clk 0:01:21.2]} 21... Ndf6 {[%clk 0:01:35.2]} 22. Ng5
{[%clk 0:00:54.6]} 22... Nxd2 {[%clk 0:00:59.8]} 23. Qxd2 {[%clk 0:00:38.3]}
23... Bxb3 {[%clk 0:01:00.8]} 24. Ra1 {[%clk 0:00:23.5]} 24... Bxa4 {[%clk
0:00:57.2]} 25. Bb7 {[%clk 0:00:21.5]} 25... Bxf2+ {[%clk 0:00:44.7]} 26. Kxf2
{[%clk 0:00:18.4]} 26... Qb6+ {[%clk 0:00:45.8]} 27. e3 {[%clk 0:00:17.2]} 27...
Qxb7 {[%clk 0:00:24.4]} 28. Rxa4 {[%clk 0:00:17.2]} 28... h6 {[%clk 0:00:25.7]}
29. Rxb4 {[%clk 0:00:14.5]} 29... Qh1 {[%clk 0:00:20.9]} 30. Nf3 {[%clk
0:00:07.2]} 30... Rc1 {[%clk 0:00:15.7]} 31. Qe2 {[%clk 0:00:07.9]} 31... Kh7
{[%clk 0:00:11.6]} 32. Ra4 {[%clk 0:00:07.8]} 32... a5 {[%clk 0:00:12.7]} 33.
Qd3+ {[%clk 0:00:03.7]} 33... g6 {[%clk 0:00:13.7]} 34. Qe2 {[%clk 0:00:05.4]}
34... Kg7 {[%clk 0:00:14.8]} 35. Rd4 {[%clk 0:00:05.5]} 35... a4 {[%clk
0:00:15.8]} 36. Rxa4 {[%clk 0:00:06.4]} 36... e5 {[%clk 0:00:15.4]} 37. Nxe5
{[%clk 0:00:06.3]} 37... Qg1+ {[%clk 0:00:16.2]} 38. Kf3 {[%clk 0:00:07.3]}
38... Rf1+ {[%clk 0:00:17.9]} 39. Qxf1 {[%clk 0:00:06.6]} 39... Qxf1# {[%clk
0:00:19.8]} 0-1

[Event "*** Titled Tuesday Blitz"]
[Site "Chess.com"]
[Date "2019.06.04"]
[Round "1"]
[White "GremioPrudente"]
[Black "Ginger_GM"]
[Result "0-1"]
[WhiteElo "2121"]
[BlackElo "2547"]
[TimeControl "180+2"]
[EndTime "13:08:25 PDT"]
[Termination "Ginger_GM won on time"]

1. Nf3 {[%clk 0:03:01.9]} 1... f5 {[%clk 0:02:58]} 2. g3 {[%clk 0:03:00.1]} 2...
Nf6 {[%clk 0:02:57.6]} 3. Bg2 {[%clk 0:03:02]} 3... d6 {[%clk 0:02:56.2]} 4. d4
{[%clk 0:03:02.3]} 4... e6 {[%clk 0:02:56.6]} 5. O-O {[%clk 0:03:01.5]} 5... Be7
{[%clk 0:02:57.6]} 6. Bg5 {[%clk 0:02:58.1]} 6... Ne4 {[%clk 0:02:53.7]} 7. Bxe7
{[%clk 0:02:57.9]} 7... Qxe7 {[%clk 0:02:55.6]} 8. Nfd2 {[%clk 0:02:57]} 8...
Nxd2 {[%clk 0:02:54.9]} 9. Nxd2 {[%clk 0:02:55.6]} 9... O-O {[%clk 0:02:55.5]}
10. c3 {[%clk 0:02:53.7]} 10... Nc6 {[%clk 0:02:44.7]} 11. Qb3 {[%clk
0:02:45.9]} 11... Kh8 {[%clk 0:02:42.2]} 12. Rae1 {[%clk 0:02:44.8]} 12... e5
{[%clk 0:02:42.1]} 13. dxe5 {[%clk 0:02:29.8]} 13... dxe5 {[%clk 0:02:42.4]} 14.
e3 {[%clk 0:02:12.6]} 14... a5 {[%clk 0:02:31.6]} 15. Rd1 {[%clk 0:02:04.8]}
15... a4 {[%clk 0:02:31.3]} 16. Qc2 {[%clk 0:02:04.7]} 16... Be6 {[%clk
0:02:27.9]} 17. b3 {[%clk 0:01:57.7]} 17... axb3 {[%clk 0:02:21.9]} 18. axb3
{[%clk 0:01:58.5]} 18... h5 {[%clk 0:02:10.1]} 19. Rfe1 {[%clk 0:01:53.6]} 19...
h4 {[%clk 0:02:02.7]} 20. Ra1 {[%clk 0:01:52.4]} 20... Rad8 {[%clk 0:01:59.8]}
21. Rad1 {[%clk 0:01:51.9]} 21... e4 {[%clk 0:01:46]} 22. Bf1 {[%clk 0:01:42.4]}
22... Ne5 {[%clk 0:01:44.1]} 23. Nc4 {[%clk 0:01:31.8]} 23... Nf3+ {[%clk
0:01:42.9]} 24. Kh1 {[%clk 0:01:25.6]} 24... Nxe1 {[%clk 0:01:38.3]} 25. Rxe1
{[%clk 0:01:26.5]} 25... hxg3 {[%clk 0:01:32.4]} 26. hxg3 {[%clk 0:01:25.4]}
26... Bxc4 {[%clk 0:01:33.3]} 27. Bxc4 {[%clk 0:01:26]} 27... Qd6 {[%clk
0:01:32.3]} 28. Kg2 {[%clk 0:01:24.9]} 28... g6 {[%clk 0:01:32.3]} 29. Rh1+
{[%clk 0:01:25.2]} 29... Kg7 {[%clk 0:01:33.4]} 30. Rh4 {[%clk 0:01:06.6]} 30...
Qd2 {[%clk 0:01:28.3]} 31. Qb1 {[%clk 0:01:05.2]} 31... Rh8 {[%clk 0:01:26.9]}
32. Qh1 {[%clk 0:00:58.1]} 32... Qxc3 {[%clk 0:01:15.6]} 33. Rxh8 {[%clk
0:00:17.1]} 33... Rxh8 {[%clk 0:01:14.1]} 34. Qd1 {[%clk 0:00:17.9]} 34... Qe5
{[%clk 0:00:58.6]} 35. Qd7+ {[%clk 0:00:17.8]} 35... Kh6 {[%clk 0:00:57.2]} 36.
Qf7 {[%clk 0:00:09.6]} 36... Qg7 {[%clk 0:00:51.8]} 37. Qd5 {[%clk 0:00:09.7]}
37... c6 {[%clk 0:00:50.9]} 38. Qd6 {[%clk 0:00:09.7]} 38... Rf8 {[%clk
0:00:45.6]} 39. Be6 {[%clk 0:00:04.2]} 39... Rf6 {[%clk 0:00:39.2]} 0-1

[Event "*** Titled Tuesday Blitz"]
[Site "Chess.com"]
[Date "2019.06.04"]
[Round "1"]
[White "matiss90"]
[Black "sergoy"]
[Result "0-1"]
[WhiteElo "2437"]
[BlackElo "2831"]
[TimeControl "180+2"]
[EndTime "13:08:26 PDT"]
[Termination "sergoy won by resignation"]

1. e4 {[%clk 0:03:01.9]} 1... c5 {[%clk 0:02:57.2]} 2. Nf3 {[%clk 0:03:02.8]}
2... d6 {[%clk 0:02:58.2]} 3. d4 {[%clk 0:03:04]} 3... cxd4 {[%clk 0:03:00.1]}
4. Nxd4 {[%clk 0:03:05.9]} 4... Nf6 {[%clk 0:03:01.6]} 5. Nc3 {[%clk 0:03:07.3]}
5... a6 {[%clk 0:03:03.1]} 6. Bc4 {[%clk 0:03:07.8]} 6... e6 {[%clk 0:03:02.7]}
7. Bb3 {[%clk 0:03:08.9]} 7... Nbd7 {[%clk 0:03:04.3]} 8. Bg5 {[%clk 0:03:09]}
8... Nc5 {[%clk 0:03:05.3]} 9. f4 {[%clk 0:03:10]} 9... Be7 {[%clk 0:03:06.2]}
10. Qf3 {[%clk 0:03:07.5]} 10... O-O {[%clk 0:03:02.8]} 11. O-O-O {[%clk
0:03:03.7]} 11... Qc7 {[%clk 0:03:03.8]} 12. g4 {[%clk 0:03:00.3]} 12... b5
{[%clk 0:03:00.4]} 13. Bxf6 {[%clk 0:02:28.1]} 13... Bxf6 {[%clk 0:03:00.9]} 14.
g5 {[%clk 0:02:29.4]} 14... Be7 {[%clk 0:03:02.2]} 15. f5 {[%clk 0:02:25.9]}
15... Bxg5+ {[%clk 0:02:58]} 16. Kb1 {[%clk 0:02:26.9]} 16... Bf6 {[%clk
0:02:58.1]} 17. Rhg1 {[%clk 0:02:20.7]} 17... b4 {[%clk 0:02:58.7]} 18. fxe6
{[%clk 0:01:43]} 18... Nxb3 {[%clk 0:02:26.8]} 19. Nd5 {[%clk 0:01:24.3]} 19...
Nxd4 {[%clk 0:01:21]} 20. Qxf6 {[%clk 0:01:10]} 20... Qxc2+ {[%clk 0:00:51]} 21.
Ka1 {[%clk 0:01:10.5]} 21... Qxd1+ {[%clk 0:00:51.2]} 22. Rxd1 {[%clk
0:01:08.1]} 22... Nc2+ {[%clk 0:00:51.8]} 23. Kb1 {[%clk 0:01:07.9]} 23... gxf6
{[%clk 0:00:50.9]} 24. Rg1+ {[%clk 0:01:04.7]} 24... Kh8 {[%clk 0:00:50.4]} 25.
e7 {[%clk 0:01:05.7]} 25... Re8 {[%clk 0:00:50.9]} 26. Nxf6 {[%clk 0:01:02.9]}
26... Be6 {[%clk 0:00:51.6]} 27. h4 {[%clk 0:00:37.9]} 27... Ne3 {[%clk
0:00:44.9]} 28. h5 {[%clk 0:00:38.7]} 28... Ng4 {[%clk 0:00:46]} 29. Nxg4 {[%clk
0:00:38]} 29... Bxg4 {[%clk 0:00:46.5]} 30. Rxg4 {[%clk 0:00:38.5]} 30... Rxe7
{[%clk 0:00:48]} 31. Kc2 {[%clk 0:00:39.1]} 31... Rg8 {[%clk 0:00:47]} 32. Rf4
{[%clk 0:00:38.9]} 32... h6 {[%clk 0:00:48.5]} 33. Rf6 {[%clk 0:00:39.6]} 33...
Re6 {[%clk 0:00:49.5]} 34. Rxf7 {[%clk 0:00:40.5]} 34... Rg7 {[%clk 0:00:51]}
35. Rf8+ {[%clk 0:00:41.5]} 35... Kh7 {[%clk 0:00:52.5]} 36. Kd3 {[%clk
0:00:43.4]} 36... Rge7 {[%clk 0:00:50.5]} 37. Rf4 {[%clk 0:00:43.7]} 37... Re5
{[%clk 0:00:50.4]} 38. Rf6 {[%clk 0:00:39.9]} 38... Rxh5 {[%clk 0:00:44.4]} 39.
Rxd6 {[%clk 0:00:40.8]} 39... Rg5 {[%clk 0:00:45.7]} 40. Rxa6 {[%clk 0:00:40.3]}
40... h5 {[%clk 0:00:46.8]} 41. Rb6 {[%clk 0:00:41.1]} 41... h4 {[%clk 0:00:48]}
42. Rxb4 {[%clk 0:00:42.3]} 42... h3 {[%clk 0:00:49.3]} 43. e5 {[%clk
0:00:42.8]} 43... Rh5 {[%clk 0:00:48.9]} 44. Kc3 {[%clk 0:00:39.8]} 44... h2
{[%clk 0:00:49.7]} 45. a3 {[%clk 0:00:41.4]} 45... h1=Q {[%clk 0:00:50.5]} 46.
Kb3 {[%clk 0:00:43.3]} 46... Qd5+ {[%clk 0:00:50.6]} 47. Kc2 {[%clk 0:00:43.8]}
47... Rh2+ {[%clk 0:00:50.9]} 48. Kb1 {[%clk 0:00:45.1]} 48... Qxe5 {[%clk
0:00:51.4]} 49. Ka2 {[%clk 0:00:45.6]} 49... Qd5+ {[%clk 0:00:51.9]} 0-1

[Event "*** Titled Tuesday Blitz"]
[Site "Chess.com"]
[Date "2019.06.04"]
[Round "1"]
[White "MaestroASK"]
[Black "mjray79"]
[Result "1-0"]
[WhiteElo "2552"]
[BlackElo "2113"]
[TimeControl "180+2"]
[EndTime "13:08:26 PDT"]
[Termination "MaestroASK won by resignation"]

1. d4 {[%clk 0:02:57.4]} 1... Nf6 {[%clk 0:03:00]} 2. Bg5 {[%clk 0:02:57.4]}
2... e6 {[%clk 0:02:59.6]} 3. e3 {[%clk 0:02:57.7]} 3... b6 {[%clk 0:02:58.2]}
4. Nd2 {[%clk 0:02:57.4]} 4... Bb7 {[%clk 0:02:58.9]} 5. Ngf3 {[%clk 0:02:58]}
5... Be7 {[%clk 0:03:00]} 6. Bd3 {[%clk 0:02:58.3]} 6... c5 {[%clk 0:02:58.3]}
7. c3 {[%clk 0:02:58.3]} 7... O-O {[%clk 0:02:54.8]} 8. O-O {[%clk 0:02:57.9]}
8... d6 {[%clk 0:02:55.1]} 9. a3 {[%clk 0:02:57.5]} 9... Nbd7 {[%clk 0:02:52]}
10. Qe2 {[%clk 0:02:57.2]} 10... cxd4 {[%clk 0:02:50.3]} 11. cxd4 {[%clk
0:02:56.4]} 11... Rc8 {[%clk 0:02:36.8]} 12. Rac1 {[%clk 0:02:55.4]} 12... e5
{[%clk 0:02:26.2]} 13. Ba6 {[%clk 0:02:49.7]} 13... Bxa6 {[%clk 0:02:12.1]} 14.
Qxa6 {[%clk 0:02:48.9]} 14... h6 {[%clk 0:02:12]} 15. Bxf6 {[%clk 0:02:46.3]}
15... Bxf6 {[%clk 0:02:12.1]} 16. Ne4 {[%clk 0:02:37.4]} 16... Be7 {[%clk
0:01:55.6]} 17. Qxa7 {[%clk 0:02:35.8]} 17... d5 {[%clk 0:01:51.3]} 18. Nc3
{[%clk 0:02:32.9]} 18... e4 {[%clk 0:01:37.4]} 19. Nd2 {[%clk 0:02:32.7]} 19...
Ra8 {[%clk 0:01:35.8]} 20. Qb7 {[%clk 0:02:32.1]} 20... Nf6 {[%clk 0:01:36.1]}
21. Ne2 {[%clk 0:02:28.3]} 21... Bd6 {[%clk 0:01:23.8]} 22. h3 {[%clk
0:02:25.7]} 22... Re8 {[%clk 0:01:06.1]} 23. Qc6 {[%clk 0:02:21.5]} 23... Re7
{[%clk 0:01:05.8]} 24. Qb5 {[%clk 0:02:19.6]} 24... Ra5 {[%clk 0:01:02]} 25. Qb3
{[%clk 0:02:19.8]} 25... Rb7 {[%clk 0:00:59.9]} 26. Rc6 {[%clk 0:02:17.3]} 26...
Qd7 {[%clk 0:00:59.8]} 27. Rfc1 {[%clk 0:02:16.4]} 27... b5 {[%clk 0:00:57.4]}
28. Rc8+ {[%clk 0:02:14.6]} 28... Kh7 {[%clk 0:00:57.1]} 29. Qc3 {[%clk
0:01:51.5]} 29... b4 {[%clk 0:00:54]} 30. Qc6 {[%clk 0:01:46.9]} 30... bxa3
{[%clk 0:00:46.4]} 31. bxa3 {[%clk 0:01:44.8]} 31... Bxa3 {[%clk 0:00:43.2]} 32.
Qxd7 {[%clk 0:01:44.4]} 32... Rxd7 {[%clk 0:00:40.9]} 33. R1c2 {[%clk
0:01:44.4]} 33... Bd6 {[%clk 0:00:37]} 34. g3 {[%clk 0:01:43.9]} 34... Rda7
{[%clk 0:00:34.5]} 35. Kg2 {[%clk 0:01:43.2]} 35... Ra2 {[%clk 0:00:34.4]} 36.
g4 {[%clk 0:01:36.9]} 36... Bb4 {[%clk 0:00:33.9]} 37. Nf1 {[%clk 0:01:34]}
37... Rxc2 {[%clk 0:00:28.3]} 38. Rxc2 {[%clk 0:01:33.2]} 38... g5 {[%clk
0:00:28.5]} 39. Nfg3 {[%clk 0:01:32.5]} 39... Ra3 {[%clk 0:00:25.2]} 40. Rb2
{[%clk 0:01:29.3]} 40... Bc3 {[%clk 0:00:23.6]} 41. Rb6 {[%clk 0:01:17.3]} 41...
Kg7 {[%clk 0:00:22]} 42. Nf5+ {[%clk 0:01:16.7]} 42... Kg6 {[%clk 0:00:22.6]}
43. Neg3 {[%clk 0:01:14.6]} 43... Ba5 {[%clk 0:00:17.8]} 44. Ne7+ {[%clk
0:01:00.8]} 44... Kg7 {[%clk 0:00:12.9]} 45. Ngf5+ {[%clk 0:01:00.2]} 45... Kf8
{[%clk 0:00:13.6]} 46. Rxf6 {[%clk 0:00:58.4]} 46... Bd8 {[%clk 0:00:14.9]} 47.
Rxh6 {[%clk 0:00:57.2]} 47... Bxe7 {[%clk 0:00:16.1]} 1-0

[Event "*** Titled Tuesday Blitz"]
[Site "Chess.com"]
[Date "2019.06.04"]
[Round "1"]
[White "Vamostodorecto"]
[Black "Dr-Bassem"]
[Result "0-1"]
[WhiteElo "2438"]
[BlackElo "2836"]
[TimeControl "180+2"]
[EndTime "13:08:28 PDT"]
[Termination "Dr-Bassem won by checkmate"]

1. d4 {[%clk 0:02:55.3]} 1... Nf6 {[%clk 0:02:57.7]} 2. c4 {[%clk 0:02:55]} 2...
e6 {[%clk 0:02:55.9]} 3. Nc3 {[%clk 0:02:55.7]} 3... Bb4 {[%clk 0:02:57.3]} 4.
e3 {[%clk 0:02:56.7]} 4... b6 {[%clk 0:02:54.8]} 5. Bd3 {[%clk 0:02:54.8]} 5...
Bb7 {[%clk 0:02:53.4]} 6. Nf3 {[%clk 0:02:56.2]} 6... Ne4 {[%clk 0:02:52.4]} 7.
Qc2 {[%clk 0:02:55.1]} 7... f5 {[%clk 0:02:49.5]} 8. O-O {[%clk 0:02:55.8]} 8...
Bxc3 {[%clk 0:02:48.5]} 9. bxc3 {[%clk 0:02:55.8]} 9... O-O {[%clk 0:02:48.5]}
10. Nd2 {[%clk 0:02:57.3]} 10... Qh4 {[%clk 0:02:48.4]} 11. f3 {[%clk
0:02:56.2]} 11... Nxd2 {[%clk 0:02:45.3]} 12. Bxd2 {[%clk 0:02:58.1]} 12... Nc6
{[%clk 0:02:45.3]} 13. e4 {[%clk 0:02:55.2]} 13... fxe4 {[%clk 0:02:39.7]} 14.
Bxe4 {[%clk 0:02:47.4]} 14... Na5 {[%clk 0:02:38.6]} 15. Bxb7 {[%clk 0:01:34.3]}
15... Nxb7 {[%clk 0:02:40.5]} 16. Be1 {[%clk 0:01:35.9]} 16... Qh5 {[%clk
0:02:37.6]} 17. Bg3 {[%clk 0:01:37.1]} 17... c5 {[%clk 0:02:26.9]} 18. Rfe1
{[%clk 0:01:36.5]} 18... Na5 {[%clk 0:02:16.1]} 19. Re5 {[%clk 0:01:31.6]} 19...
Rf5 {[%clk 0:02:16.3]} 20. Qe4 {[%clk 0:01:19.1]} 20... Raf8 {[%clk 0:02:13.3]}
21. dxc5 {[%clk 0:01:17]} 21... bxc5 {[%clk 0:02:12]} 22. Rd1 {[%clk 0:01:17.2]}
22... Rxe5 {[%clk 0:01:07.1]} 23. Bxe5 {[%clk 0:01:19.1]} 23... Nc6 {[%clk
0:00:58.9]} 24. Bg3 {[%clk 0:01:13.7]} 24... Rf7 {[%clk 0:00:54.8]} 25. Rb1
{[%clk 0:00:51.1]} 25... Qg5 {[%clk 0:00:43.1]} 26. Qd3 {[%clk 0:00:33.5]} 26...
h5 {[%clk 0:00:38.3]} 27. Bd6 {[%clk 0:00:25.9]} 27... h4 {[%clk 0:00:27.5]} 28.
h3 {[%clk 0:00:25.6]} 28... Rf6 {[%clk 0:00:26.4]} 29. Kh2 {[%clk 0:00:23.7]}
29... Rg6 {[%clk 0:00:26.9]} 30. Rb2 {[%clk 0:00:23.3]} 30... e5 {[%clk
0:00:20.7]} 31. Qd5+ {[%clk 0:00:23.3]} 31... Kh7 {[%clk 0:00:21.3]} 32. Bxc5
{[%clk 0:00:20.1]} 32... Qg3+ {[%clk 0:00:21.1]} 33. Kh1 {[%clk 0:00:20.5]}
33... Qe1+ {[%clk 0:00:20.9]} 34. Kh2 {[%clk 0:00:21]} 34... Qxc3 {[%clk
0:00:21.7]} 35. Rd2 {[%clk 0:00:19.6]} 35... Nd4 {[%clk 0:00:20.1]} 36. Bxd4
{[%clk 0:00:15.6]} 36... Qxd2 {[%clk 0:00:20.6]} 37. Bxe5 {[%clk 0:00:10.1]}
37... Qxg2# {[%clk 0:00:21.1]} 0-1